Workbook

Sheet Template
E2: Turnback Chart - Planning Department
E5: Turn-back | F5: Count | G5: cumulative count | H5: cumulative %
E6: a | F6: 45444444 | G6: =SUM(F6) -> 45444444 | H6: =SUM(G6/$G$12) -> 0.3914212774 | L6: (add your turn-backs into column E and then add data to the count field (column F) (The number of times each turn-back happened, or the total cost of their impact) The chart will display the data. Now change the chart title. Use the Sort Button to automatically sort in order.
E7: s | F7: 44545555 | G7: =SUM(F7+G6) -> 89989999 | H7: =SUM(G7/$G$12) -> 0.77510026
E8: 6 | F8: 9898888 | G8: =SUM(F8+G7) -> 99888887 | H8: =SUM(G8/$G$12) -> 0.8603611862
E9: f | F9: 6666666 | G9: =SUM(F9+G8) -> 106555553 | H9: =SUM(G9/$G$12) -> 0.9177823953
E10: e | F10: 4545567 | G10: =SUM(F10+G9) -> 111101120 | H10: =SUM(G10/$G$12) -> 0.9569341922
E11: d | F11: 4444444 | G11: =SUM(F11+G10) -> 115545564 | H11: =SUM(G11/$G$12) -> 0.9952149983
E12: 5 | F12: 555544 | G12: =SUM(F12+G11) -> 116101108 | H12: =SUM(G12/$G$12) -> 1

Sheet Example
E2: Turnback Chart - Planning Department
E5: Turn-back | F5: Count (Lost time $) | G5: cumulative count | H5: cumulative %
E6: Customer changed mind (outside 3 day fixed window) | F6: 5400 | G6: =SUM(F6) -> 5400 | H6: =SUM(G6/$G$12) -> 0.3711340206
E7: Equipment Breakdown | F7: 3000 | G7: =SUM(F7+G6) -> 8400 | H7: =SUM(G7/$G$12) -> 0.5773195876
E8: Poor yield from previous run | F8: 2000 | G8: =SUM(F8+G7) -> 10400 | H8: =SUM(G8/$G$12) -> 0.7147766323
E9: Not enough visibility in demand | F9: 1750 | G9: =SUM(F9+G8) -> 12150 | H9: =SUM(G9/$G$12) -> 0.8350515464
E10: Short on material supply | F10: 1500 | G10: =SUM(F10+G9) -> 13650 | H10: =SUM(G10/$G$12) -> 0.9381443299
E11: Ran out of holding stock | F11: 500 | G11: =SUM(F11+G10) -> 14150 | H11: =SUM(G11/$G$12) -> 0.9725085911
E12: Other | F12: 400 | G12: =SUM(F12+G11) -> 14550 | H12: =SUM(G12/$G$12) -> 1
